fUSD/lending_fUSD_20260520
["ID","MTS","AMOUNT","RATE_DAILY","PERIOD"]
[422687372,1779244705000,-150.0,9.595e-05,2]
[422687373,1779244713000,-150.0,9.595e-05,2]
[422687374,1779244719000,344.37,5.782e-05,2]
[422687375,1779244719000,344.37,6.074e-05,2]
[422687377,1779244719000,344.37,6.659e-05,2]
[422687376,1779244719000,344.37,6.366e-05,2]
[422687382,1779244720000,299.267047,8.12e-05,2]
[422687383,1779244720000,45.102953,8.12e-05,2]
[422687381,1779244720000,344.37,7.828e-05,2]
[422687380,1779244720000,344.37,7.536e-05,2]
[422687379,1779244720000,344.37,7.243e-05,2]
[422687378,1779244720000,344.37,6.951e-05,2]
[422687384,1779244721000,344.37,8.413e-05,2]
[422687386,1779244721000,344.37,8.998e-05,2]
[422687387,1779244721000,344.37,9.29e-05,2]
[422687385,1779244721000,344.37,8.705e-05,2]
[422687388,1779244722000,344.37,9.582e-05,2]
[422687389,1779244849000,173.07,8.981e-05,2]
[422687394,1779245008000,179.294,9.501e-05,2]
[422687393,1779245008000,1937.517,9.501e-05,2]
[422687395,1779245013000,152.0,0.0001007,7]
[422687396,1779245070000,176.89,0.00028973,120]
[422687402,1779245221000,178.96984945,9.547e-05,2]
[422687403,1779245341000,1000.0,0.00030135,120]
[422687426,1779245432000,-500.0,9.694e-05,2]
[422687421,1779245432000,-500.0,9.694e-05,2]
[422687424,1779245432000,-500.0,9.694e-05,2]
[422687422,1779245432000,-500.0,9.694e-05,2]
[422687428,1779245432000,-500.0,9.694e-05,2]
[422687430,1779245432000,-500.0,9.694e-05,2]
[422687431,1779245432000,-500.0,9.694e-05,2]
[422687429,1779245432000,-500.0,9.694e-05,2]
[422687432,1779245432000,-500.0,9.694e-05,2]
[422687423,1779245432000,-294.97381805,9.694e-05,2]
[422687433,1779245432000,-500.0,9.694e-05,2]
[422687434,1779245432000,-500.0,9.694e-05,2]
[422687444,1779245432000,-500.0,9.694e-05,2]
[422687435,1779245432000,-500.0,9.694e-05,2]
[422687427,1779245432000,-500.0,9.694e-05,2]
[422687417,1779245432000,-178.96984945,9.646e-05,2]
[422687420,1779245432000,-12783.0,9.671e-05,2]
[422687406,1779245432000,-300.0,9.593e-05,2]
[422687405,1779245432000,-300.0,9.593e-05,2]
[422687407,1779245432000,-300.0,9.593e-05,2]
[422687409,1779245432000,-250.0,9.593e-05,2]
[422687408,1779245432000,-1200.0,9.593e-05,2]
[422687410,1779245432000,-150.0,9.594e-05,2]
[422687425,1779245432000,-500.0,9.694e-05,2]
[422687411,1779245432000,-1200.0,9.594e-05,2]
[422687414,1779245432000,-2932.287,9.595e-05,2]
[422687419,1779245432000,-178.96984944,9.647e-05,2]
[422687413,1779245432000,-8650.0,9.595e-05,2]
[422687415,1779245432000,-5000.0,9.595e-05,2]
[422687418,1779245432000,-178.96984945,9.647e-05,2]
[422687416,1779245432000,-2500.0,9.595e-05,2]
[422687412,1779245432000,-187.77717829,9.594e-05,2]
[422687438,1779245432000,-500.0,9.694e-05,2]
[422687457,1779245432000,-500.0,9.694e-05,2]
[422687440,1779245432000,-500.0,9.694e-05,2]
[422687463,1779245432000,-500.0,9.694e-05,2]
[422687462,1779245432000,-500.0,9.694e-05,2]
[422687464,1779245432000,-500.0,9.694e-05,2]
[422687460,1779245432000,-450.0,9.694e-05,2]
[422687469,1779245432000,-500.0,9.694e-05,2]
[422687465,1779245432000,-500.0,9.694e-05,2]
[422687461,1779245432000,-500.0,9.694e-05,2]
[422687466,1779245432000,-500.0,9.694e-05,2]
[422687467,1779245432000,-500.0,9.694e-05,2]
[422687470,1779245432000,-500.0,9.694e-05,2]
[422687473,1779245432000,-500.0,9.694e-05,2]
[422687472,1779245432000,-500.0,9.694e-05,2]
[422687471,1779245432000,-500.0,9.694e-05,2]
[422687436,1779245432000,-500.0,9.694e-05,2]
[422687468,1779245432000,-500.0,9.694e-05,2]
[422687459,1779245432000,-500.0,9.694e-05,2]
[422687448,1779245432000,-500.0,9.694e-05,2]
[422687453,1779245432000,-500.0,9.694e-05,2]
[422687437,1779245432000,-500.0,9.694e-05,2]
[422687439,1779245432000,-500.0,9.694e-05,2]
[422687443,1779245432000,-500.0,9.694e-05,2]
[422687441,1779245432000,-500.0,9.694e-05,2]
[422687446,1779245432000,-500.0,9.694e-05,2]
[422687456,1779245432000,-500.0,9.694e-05,2]
[422687445,1779245432000,-500.0,9.694e-05,2]
[422687454,1779245432000,-500.0,9.694e-05,2]
[422687451,1779245432000,-500.0,9.694e-05,2]
[422687442,1779245432000,-500.0,9.694e-05,2]
[422687450,1779245432000,-500.0,9.694e-05,2]
[422687449,1779245432000,-307.73499514,9.694e-05,2]
[422687452,1779245432000,-500.0,9.694e-05,2]
[422687458,1779245432000,-500.0,9.694e-05,2]
[422687447,1779245432000,-500.0,9.694e-05,2]
[422687483,1779245433000,-500.0,9.694e-05,2]
[422687480,1779245433000,-473.38226939,9.694e-05,2]
[422687481,1779245433000,-460.97588841,9.694e-05,2]
[422687476,1779245433000,-500.0,9.694e-05,2]
[422687477,1779245433000,-500.0,9.694e-05,2]
[422687485,1779245433000,-500.0,9.694e-05,2]
[422687474,1779245433000,-500.0,9.694e-05,2]
[422687475,1779245433000,-500.0,9.694e-05,2]
[422687479,1779245433000,-500.0,9.694e-05,2]
[422687484,1779245433000,-250.0,9.694e-05,2]
[422687478,1779245433000,-500.0,9.694e-05,2]
[422687482,1779245433000,-500.0,9.694e-05,2]
[422687487,1779245433000,-224.74448237,9.694e-05,2]
[422687491,1779245433000,-2304.00742309,9.695e-05,2]
[422687489,1779245433000,-28670.70448092,9.695e-05,2]
[422687486,1779245433000,-500.0,9.694e-05,2]
[422687490,1779245433000,-38362.71264628,9.695e-05,2]
[422687492,1779245433000,-36345.29885559,9.695e-05,2]
[422687493,1779245433000,-464.29087844,9.695e-05,2]
[422687494,1779245433000,-1009.52478158,9.695e-05,2]
[422687495,1779245433000,426.38849602,9.571e-05,2]
[422687496,1779245433000,2842.24460398,9.571e-05,2]
[422687488,1779245433000,-1016004.33303055,9.695e-05,2]
[422687505,1779245438000,-374.68915625,9.695e-05,2]
[422687507,1779245438000,-355.30495257,9.695e-05,2]
[422687506,1779245438000,-752.76997313,9.695e-05,2]
[422687509,1779245438000,-2527.28622367,9.695e-05,2]
[422687510,1779245438000,-1386.34858037,9.695e-05,2]
[422687508,1779245438000,-2000.0,9.695e-05,2]
[422687513,1779245441000,-49.99446952,9.695e-05,2]
[422687559,1779245447000,-15057.69745933,9.695e-05,2]
[422687560,1779245447000,-1905.7713,9.695e-05,2]
[422687558,1779245447000,-1759.0,9.695e-05,2]
[422687557,1779245447000,-58794.42413502,9.695e-05,2]
[422687556,1779245447000,-3588.89304701,9.695e-05,2]
[422687592,1779245513000,4537.36834082,9.494e-05,2]
[422687591,1779245513000,1819.94769449,9.494e-05,2]
[422687593,1779245521000,300.898784,9.8e-05,7]
[422687594,1779245530000,300.898784,9.4e-05,7]
[422687595,1779245577000,124.82395765,9.571e-05,2]
[422687596,1779245659000,200.0,5e-05,120]
[422687617,1779245729000,500.0,5.198e-05,2]
[422687597,1779245729000,228.22070927,4.514e-05,2]
[422687599,1779245729000,152.0,4.514e-05,2]
[422687600,1779245729000,164.71,4.514e-05,2]
[422687598,1779245729000,212.25158258,4.514e-05,2]
[422687601,1779245729000,155.3,4.514e-05,2]
[422687602,1779245729000,169.35,4.514e-05,2]
[422687603,1779245729000,52.05770815,4.514e-05,2]
[422687605,1779245729000,154.69920705,4.742e-05,2]
[422687608,1779245729000,200.0,4.742e-05,2]
[422687604,1779245729000,115.86229185,4.742e-05,2]
[422687607,1779245729000,180.60080827,4.742e-05,2]
[422687609,1779245729000,267.78769283,4.742e-05,2]
[422687610,1779245729000,91.79818617,4.97e-05,2]
[422687611,1779245729000,437.2413,4.97e-05,2]
[422687613,1779245729000,179.39,4.97e-05,2]
[422687612,1779245729000,179.39,4.97e-05,2]
[422687614,1779245729000,179.39,4.97e-05,2]
[422687615,1779245729000,66.68051383,4.97e-05,2]
[422687616,1779245729000,104.80948617,5.198e-05,2]
[422687606,1779245729000,214.94,4.742e-05,2]
[422687618,1779245729000,443.342153,5.198e-05,2]
[422687619,1779245760000,152.0,0.0001007,7]
[422687620,1779245952000,435.55516247,0.00030136,120]
[422687621,1779246243000,1363.0,0.0003013,120]
[422687625,1779246541000,1000.0,0.00030135,120]
[422687626,1779246545000,1517.817,0.0003013,120]
[422687627,1779246555000,4450177.28660559,0.00028,120]
[422687631,1779246631000,-328.62,4.933e-05,2]
[422687662,1779246631000,-161.0,5.499e-05,2]
[422687658,1779246631000,-153.0,5.399e-05,2]
[422687656,1779246631000,-9311.13,5.324e-05,2]
[422687659,1779246631000,-1133.89,5.427e-05,2]
[422687655,1779246631000,-193.14,5.324e-05,2]
[422687654,1779246631000,-208.63953863,5.32e-05,2]
[422687652,1779246631000,-1852.42,5.259e-05,2]
[422687653,1779246631000,-153.0,5.299e-05,2]
[422687651,1779246631000,-153.0,5.249e-05,2]
[422687649,1779246631000,-85.73836083,5.198e-05,2]
[422687647,1779246631000,-1000.0,5.148e-05,2]
[422687639,1779246631000,-153.0,5.099e-05,2]
[422687646,1779246631000,-19612.98,5.109e-05,2]
[422687648,1779246631000,-153.0,5.149e-05,2]
[422687644,1779246631000,-300.0,5.108e-05,2]
[422687645,1779246631000,-300.0,5.108e-05,2]
[422687643,1779246631000,-1200.0,5.108e-05,2]
[422687641,1779246631000,-480.0,5.108e-05,2]
[422687642,1779246631000,-300.0,5.108e-05,2]
[422687637,1779246631000,-2305.80770489,5.085e-05,2]
[422687657,1779246631000,-153.0,5.349e-05,2]
[422687635,1779246631000,-509.64,5.085e-05,2]
[422687633,1779246631000,-153.0,5.049e-05,2]
[422687640,1779246631000,-300.0,5.108e-05,2]
[422687660,1779246631000,-153.0,5.449e-05,2]
[422687638,1779246631000,-348.29039715,5.097e-05,2]
[422687661,1779246631000,-500.0,5.479e-05,2]
[422687663,1779246631000,-209.36,5.507e-05,2]
[422687703,1779246631000,-25644.50302266,6.446e-05,2]
[422687700,1779246631000,-1628.69,6.446e-05,2]
[422687702,1779246631000,-9999.99,6.446e-05,2]
[422687692,1779246631000,-1488.34,6.446e-05,2]
[422687690,1779246631000,-7792.04670625,6.446e-05,2]
[422687689,1779246631000,-2207.94329375,6.446e-05,2]
[422687687,1779246631000,-34769.84707635,6.446e-05,2]
[422687685,1779246631000,-245802.81292365,6.446e-05,2]
[422687683,1779246631000,-353.13,6.446e-05,2]
[422687696,1779246631000,-499.99,6.446e-05,2]
[422687698,1779246631000,-999.99,6.446e-05,2]
[422687694,1779246631000,-29718.19,6.446e-05,2]
[422687650,1779246631000,-153.0,5.199e-05,2]
[422687679,1779246631000,-183.39837749,6.246e-05,2]
[422687664,1779246631000,-250.0,5.593e-05,2]
[422687681,1779246631000,-1133.89,6.34e-05,2]
[422687665,1779246631000,-301.0,5.618e-05,2]
[422687666,1779246631000,-1680.0,5.618e-05,2]
[422687667,1779246631000,-420.0,5.618e-05,2]
[422687669,1779246631000,-150.0,5.655e-05,2]
[422687668,1779246631000,-1133.89,5.655e-05,2]
[422687671,1779246631000,-1133.89,5.883e-05,2]
[422687672,1779246631000,-1133.89,6.111e-05,2]
[422687676,1779246631000,-587.0,6.18e-05,2]
[422687677,1779246631000,-255.0,6.22e-05,2]
[422687674,1779246631000,-2351.0,6.18e-05,2]
[422687670,1779246631000,-250.0,5.663e-05,2]
[422687705,1779246632000,-2201.61,6.446e-05,2]
[422687704,1779246632000,-3152.99697734,6.446e-05,2]
[422687706,1779246632000,-299.99,6.446e-05,2]
[422687709,1779246632000,-1289.0,6.446e-05,2]
[422687713,1779246632000,-8119.1404533,6.446e-05,2]
[422687707,1779246632000,-591.8495467,6.446e-05,2]
[422687715,1779246632000,-1100.99051642,6.446e-05,2]
[422687716,1779246632000,-1267.72948358,6.446e-05,2]
[422687717,1779246632000,-863.35051642,6.446e-05,2]
[422687720,1779246632000,-367.55852767,6.446e-05,2]
[422687719,1779246632000,-885.56582339,6.446e-05,2]
[422687718,1779246632000,-1108.2823487,6.446e-05,2]
[422687714,1779246632000,-2772.17948358,6.446e-05,2]
[422687727,1779246637000,-263.33395894,6.445e-05,2]
[422687726,1779246637000,-500.0,6.445e-05,2]
[422687723,1779246637000,-500.0,6.445e-05,2]
[422687725,1779246637000,-500.0,6.445e-05,2]
[422687724,1779246637000,-500.0,6.445e-05,2]
[422687722,1779246637000,-500.0,6.445e-05,2]
[422688004,1779246640000,-441.77149627,6.445e-05,2]
[422688006,1779246640000,-462.95470375,6.445e-05,2]
[422688010,1779246640000,-57.72175302,6.445e-05,2]
[422688001,1779246640000,-500.0,6.445e-05,2]
[422688008,1779246640000,-500.0,6.445e-05,2]
[422687999,1779246640000,-236.66604106,6.445e-05,2]
[422688217,1779246642000,-500.0,6.445e-05,2]
[422688211,1779246642000,-500.0,6.445e-05,2]
[422688210,1779246642000,-442.27824698,6.445e-05,2]
[422688213,1779246642000,-100.1849267,6.445e-05,2]
[422688212,1779246642000,-500.0,6.445e-05,2]
[422688214,1779246642000,-399.8150733,6.445e-05,2]
[422688216,1779246642000,-500.0,6.445e-05,2]
[422688215,1779246642000,-500.0,6.445e-05,2]
[422688222,1779246642000,-500.0,6.445e-05,2]
[422688224,1779246642000,-500.0,6.445e-05,2]
[422688228,1779246642000,-500.0,6.445e-05,2]
[422688219,1779246642000,-500.0,6.445e-05,2]
[422688227,1779246642000,-500.0,6.445e-05,2]
[422688226,1779246642000,-500.0,6.445e-05,2]
[422688223,1779246642000,-500.0,6.445e-05,2]
[422688229,1779246642000,-41.69363964,6.445e-05,2]
[422688218,1779246642000,-500.0,6.445e-05,2]
[422688220,1779246642000,-500.0,6.445e-05,2]
[422688221,1779246642000,-500.0,6.445e-05,2]
[422688225,1779246642000,-500.0,6.445e-05,2]
[422688260,1779246643000,-1133.89,7.481e-05,2]
[422688249,1779246643000,-193.14,6.655e-05,2]
[422688254,1779246643000,-433.0,6.842e-05,2]
[422688257,1779246643000,-1133.89,7.253e-05,2]
[422688259,1779246643000,-1152.0,7.478e-05,2]
[422688255,1779246643000,-1133.89,7.024e-05,2]
[422688252,1779246643000,-3292.0,6.798e-05,2]
[422688256,1779246643000,-154.54792623,7.252e-05,2]
[422688264,1779246643000,-1133.89,7.937e-05,2]
[422688262,1779246643000,-205.38,7.671e-05,2]
[422688271,1779246643000,-288.58,8.219e-05,2]
[422688253,1779246643000,-823.0,6.798e-05,2]
[422688270,1779246643000,-726.330924,8.178e-05,2]
[422688272,1779246643000,-2000.0,8.219e-05,2]
[422688261,1779246643000,-736.0,7.527e-05,2]
[422688265,1779246643000,-3456.229562,7.945e-05,2]
[422688268,1779246643000,-502.0,8.082e-05,2]
[422688258,1779246643000,-4609.0,7.478e-05,2]
[422688250,1779246643000,-2204.2,6.783e-05,2]
[422688240,1779246643000,-520.62,6.446e-05,2]
[422688248,1779246643000,-1133.89,6.568e-05,2]
[422688232,1779246643000,-500.0,6.445e-05,2]
[422688236,1779246643000,-500.0,6.445e-05,2]
[422688230,1779246643000,-458.30636036,6.445e-05,2]
[422688231,1779246643000,-549.21135513,6.445e-05,2]
[422688233,1779246643000,-500.0,6.445e-05,2]
[422688235,1779246643000,-500.0,6.445e-05,2]
[422688237,1779246643000,-500.0,6.445e-05,2]
[422688239,1779246643000,-3658.73,6.446e-05,2]
[422688242,1779246643000,-109268.17,6.446e-05,2]
[422688243,1779246643000,-3743.51,6.446e-05,2]
[422688241,1779246643000,-9999.99,6.446e-05,2]
[422688234,1779246643000,-500.0,6.445e-05,2]
[422688238,1779246643000,-2638.58330024,6.446e-05,2]
[422688244,1779246643000,-7647.39,6.446e-05,2]
[422688247,1779246643000,-150.99,6.446e-05,2]
[422688245,1779246643000,-10587.05,6.446e-05,2]
[422688246,1779246643000,-3013.79,6.446e-05,2]
[422688251,1779246643000,-1133.89,6.796e-05,2]
[422688263,1779246643000,-1133.89,7.709e-05,2]
[422688308,1779246643000,-215.20247212,0.00010009,2]
[422688269,1779246643000,-1133.89,8.166e-05,2]
[422688304,1779246643000,-330.53835184,0.0001,2]
[422688290,1779246643000,-442.9519,9.595e-05,2]
[422688297,1779246643000,-722.74807562,0.0001,2]
[422688303,1779246643000,-440.8421,0.0001,2]
[422688305,1779246643000,-940.63618073,0.0001,2]
[422688306,1779246643000,-160.0,0.00010009,2]
[422688310,1779246643000,-3620.0,0.0001002,2]
[422688317,1779246643000,-866.27823591,0.00010106,2]
[422688316,1779246643000,-151.0,0.00010103,2]
[422688312,1779246643000,-1603.71,0.00010027,2]
[422688315,1779246643000,-1000.0,0.00010069,2]
[422688314,1779246643000,-1000.0,0.00010069,2]
[422688323,1779246643000,-1603.71,0.00010529,2]
[422688321,1779246643000,-189.0,0.00010276,2]
[422688322,1779246643000,-1603.71,0.00010278,2]
[422688324,1779246643000,-250435.93226108,0.000107,2]
[422688325,1779246643000,-0.22633126,0.000107,2]
[422688295,1779246643000,-202.14304324,0.0001,2]
[422688267,1779246643000,-500.0,8.055e-05,2]
[422688291,1779246643000,-12649.0,9.953e-05,2]
[422688302,1779246643000,-317.03068335,0.0001,2]
[422688266,1779246643000,-193.14,7.986e-05,2]
[422688274,1779246643000,-760.65,8.219e-05,2]
[422688273,1779246643000,-500.0,8.219e-05,2]
[422688281,1779246643000,-500.0,8.963e-05,2]
[422688282,1779246643000,-9035.0,9.049e-05,2]
[422688275,1779246643000,-6453.0,8.226e-05,2]
[422688277,1779246643000,-1252.0,8.279e-05,2]
[422688292,1779246643000,-3162.0,9.953e-05,2]
[422688280,1779246643000,-1133.89,8.85e-05,2]
[422688286,1779246643000,-2129.0,9.11e-05,2]
[422688278,1779246643000,-1133.89,8.394e-05,2]
[422688284,1779246643000,-2258.0,9.049e-05,2]
[422688279,1779246643000,-1133.89,8.622e-05,2]
[422688288,1779246643000,-2000.0,9.247e-05,2]
[422688300,1779246643000,-317.03068335,0.0001,2]
[422688299,1779246643000,-151.0,0.0001,2]
[422688301,1779246643000,-247.20205468,0.0001,2]
[422688276,1779246643000,-1613.0,8.226e-05,2]
[422688319,1779246643000,-2000.0,0.00010274,2]
[422688326,1779246646000,-1401.74345004,0.000107,2]
[422688369,1779246948000,152.0,9.829e-05,7]
[422688420,1779247334000,-1170.29487155,6.82e-05,2]
[422688400,1779247334000,-195.39157573,6.787e-05,2]
[422688398,1779247334000,-150.0,6.786e-05,2]
[422688397,1779247334000,-179.294,6.685e-05,2]
[422688396,1779247334000,-1550.013,6.685e-05,2]
[422688395,1779247334000,-150.0,6.132e-05,2]
[422688394,1779247334000,-150.0,6.072e-05,2]
[422688399,1779247334000,-300.0,6.786e-05,2]
[422688393,1779247334000,-150.0,6.013e-05,2]
[422688391,1779247334000,-250.0,5.625e-05,2]
[422688390,1779247334000,-200.0,5.479e-05,2]
[422688389,1779247334000,-250.0,5.071e-05,2]
[422688388,1779247334000,-250.0,5.045e-05,2]
[422688387,1779247334000,-1680.8,4.61e-05,2]
[422688386,1779247334000,-267.0,4.61e-05,2]
[422688392,1779247334000,-179.97,5.953e-05,2]
[422688401,1779247334000,-195.39157572,6.787e-05,2]
[422688419,1779247334000,-1170.29487155,6.82e-05,2]
[422688403,1779247334000,-166.16,6.787e-05,2]
[422688418,1779247334000,-1170.29487155,6.82e-05,2]
[422688417,1779247334000,-1170.29487155,6.82e-05,2]
[422688415,1779247334000,-1170.29487155,6.82e-05,2]
[422688416,1779247334000,-1170.29487155,6.82e-05,2]
[422688414,1779247334000,-500.0,6.82e-05,2]
[422688413,1779247334000,-193.53397308,6.82e-05,2]
[422688411,1779247334000,-500.0,6.82e-05,2]
[422688402,1779247334000,-150.99,6.787e-05,2]
[422688410,1779247334000,-162.55052264,6.82e-05,2]
[422688409,1779247334000,-160.19683292,6.82e-05,2]
[422688407,1779247334000,-157.32113766,6.82e-05,2]
[422688408,1779247334000,-268.65632061,6.82e-05,2]
[422688406,1779247334000,-1200.0,6.818e-05,2]
[422688404,1779247334000,-9999.99,6.787e-05,2]
[422688405,1779247334000,-337.9895,6.795e-05,2]
[422688412,1779247334000,-500.0,6.82e-05,2]
[422688435,1779247335000,-1170.29487155,6.82e-05,2]
[422688434,1779247335000,-1170.29487155,6.82e-05,2]
[422688433,1779247335000,-1170.29487155,6.82e-05,2]
[422688432,1779247335000,-1170.29487155,6.82e-05,2]
[422688431,1779247335000,-1170.29487155,6.82e-05,2]
[422688429,1779247335000,-1170.29487155,6.82e-05,2]
[422688430,1779247335000,-1170.29487155,6.82e-05,2]
[422688425,1779247335000,-1170.29487155,6.82e-05,2]
[422688427,1779247335000,-1170.29487155,6.82e-05,2]
[422688426,1779247335000,-1170.29487155,6.82e-05,2]
[422688424,1779247335000,-1170.29487155,6.82e-05,2]
[422688423,1779247335000,-1170.29487155,6.82e-05,2]
[422688422,1779247335000,-1170.29487155,6.82e-05,2]
[422688421,1779247335000,-1170.29487155,6.82e-05,2]
[422688436,1779247335000,-1170.29487155,6.82e-05,2]
[422688428,1779247335000,-1170.29487155,6.82e-05,2]
[422688437,1779247335000,-1170.29487155,6.82e-05,2]
[422688441,1779247335000,-1170.29487155,6.82e-05,2]
[422688439,1779247335000,-1170.29487155,6.82e-05,2]
[422688456,1779247335000,-1170.29487155,6.82e-05,2]
[422688455,1779247335000,-1170.29487155,6.82e-05,2]
[422688454,1779247335000,-1170.29487155,6.82e-05,2]
[422688438,1779247335000,-1170.29487155,6.82e-05,2]
[422688451,1779247335000,-1170.29487155,6.82e-05,2]
[422688452,1779247335000,-1170.29487155,6.82e-05,2]
[422688450,1779247335000,-1170.29487155,6.82e-05,2]
[422688449,1779247335000,-1170.29487155,6.82e-05,2]
[422688453,1779247335000,-1170.29487155,6.82e-05,2]
[422688447,1779247335000,-1170.29487155,6.82e-05,2]
[422688446,1779247335000,-1170.29487155,6.82e-05,2]
[422688445,1779247335000,-1170.29487155,6.82e-05,2]
[422688444,1779247335000,-1170.29487155,6.82e-05,2]
[422688443,1779247335000,-1170.29487155,6.82e-05,2]
[422688442,1779247335000,-1170.29487155,6.82e-05,2]
[422688440,1779247335000,-1170.29487155,6.82e-05,2]
[422688448,1779247335000,-1170.29487155,6.82e-05,2]
[422688466,1779247336000,-1156.02298287,6.82e-05,2]
[422688465,1779247336000,-1156.02298287,6.82e-05,2]
[422688464,1779247336000,-1156.02298287,6.82e-05,2]
[422688463,1779247336000,-1156.02298287,6.82e-05,2]
[422688462,1779247336000,-1156.02298287,6.82e-05,2]
[422688459,1779247336000,-1170.29487155,6.82e-05,2]
[422688461,1779247336000,-1156.02298287,6.82e-05,2]
[422688458,1779247336000,-1170.29487155,6.82e-05,2]
[422688457,1779247336000,-1170.29487155,6.82e-05,2]
[422688468,1779247336000,-1156.02298287,6.82e-05,2]
[422688460,1779247336000,-1170.29487155,6.82e-05,2]
[422688469,1779247336000,-1156.02298287,6.82e-05,2]
[422688467,1779247336000,-1156.02298287,6.82e-05,2]
[422688471,1779247336000,-1156.02298287,6.82e-05,2]
[422688470,1779247336000,-1156.02298287,6.82e-05,2]
[422688482,1779247336000,-1156.02298287,6.82e-05,2]
[422688479,1779247336000,-1156.02298287,6.82e-05,2]
[422688480,1779247336000,-1156.02298287,6.82e-05,2]
[422688478,1779247336000,-1156.02298287,6.82e-05,2]
[422688476,1779247336000,-1156.02298287,6.82e-05,2]
[422688481,1779247336000,-1156.02298287,6.82e-05,2]
[422688475,1779247336000,-1156.02298287,6.82e-05,2]
[422688474,1779247336000,-1156.02298287,6.82e-05,2]
[422688472,1779247336000,-1156.02298287,6.82e-05,2]
[422688483,1779247336000,-338.6818472,6.82e-05,2]
[422688473,1779247336000,-1156.02298287,6.82e-05,2]
[422688477,1779247336000,-1156.02298287,6.82e-05,2]
[422688485,1779247653000,152.0,9.69e-05,7]
[422688496,1779247831000,-681.77690525,3.766e-05,2]
[422688491,1779247831000,-811.03634821,3.675e-05,2]
[422688492,1779247831000,-201.40365179,3.675e-05,2]
[422688493,1779247831000,-150.0,3.711e-05,2]
[422688495,1779247831000,-267.65685024,3.766e-05,2]
[422688494,1779247831000,-150.0,3.748e-05,2]
[422688497,1779247831000,-110.77034455,3.766e-05,2]
[422688500,1779247831000,-150.0,3.821e-05,2]
[422688498,1779247831000,-250.0,3.768e-05,2]
[422688501,1779247831000,-253.54771661,3.861e-05,2]
[422688499,1779247831000,-150.0,3.784e-05,2]
[422688508,1779247831000,-39.95711835,4.233e-05,2]
[422688507,1779247831000,-972.48288165,4.233e-05,2]
[422688505,1779247831000,-254.2670698,4.043e-05,2]
[422688509,1779247831000,-200.0,4.346e-05,2]
[422688506,1779247831000,-1012.44,4.047e-05,2]
[422688504,1779247831000,-38.44335581,4.043e-05,2]
[422688503,1779247831000,-211.55664419,4.043e-05,2]
[422688502,1779247831000,-758.89228339,3.861e-05,2]
[422688547,1779247832000,-1012.44,6.463e-05,2]
[422688550,1779247832000,-1012.44,6.648e-05,2]
[422688539,1779247832000,-1012.44,5.905e-05,2]
[422688548,1779247832000,-2006.0,6.468e-05,2]
[422688534,1779247832000,-1012.44,5.719e-05,2]
[422688549,1779247832000,-255.0,6.496e-05,2]
[422688543,1779247832000,-1012.44,6.277e-05,2]
[422688553,1779247832000,-500.0,6.82e-05,2]
[422688542,1779247832000,-171.13,6.268e-05,2]
[422688541,1779247832000,-1012.44,6.091e-05,2]
[422688552,1779247832000,-1240.011,6.685e-05,2]
[422688551,1779247832000,-179.2949121,6.685e-05,2]
[422688555,1779247832000,-500.0,6.82e-05,2]
[422688557,1779247832000,-500.0,6.82e-05,2]
[422688537,1779247832000,-150.0,5.905e-05,2]
[422688546,1779247832000,-227.25,6.393e-05,2]
[422688536,1779247832000,-3292.0,5.88e-05,2]
[422688517,1779247832000,-723.91269507,4.61e-05,2]
[422688526,1779247832000,-1012.44,5.162e-05,2]
[422688562,1779247832000,-500.0,6.82e-05,2]
[422688511,1779247832000,-1012.44,4.418e-05,2]
[422688516,1779247832000,-1035.6491122,4.61e-05,2]
[422688518,1779247832000,-816.39367816,4.61e-05,2]
[422688510,1779247832000,-1200.0,4.417e-05,2]
[422688514,1779247832000,-627.58,4.61e-05,2]
[422688512,1779247832000,-1012.44,4.604e-05,2]
[422688532,1779247832000,-1012.44,5.533e-05,2]
[422688520,1779247832000,-1538.63282415,4.61e-05,2]
[422688521,1779247832000,-302.95,4.61e-05,2]
[422688523,1779247832000,-366.66643198,4.859e-05,2]
[422688522,1779247832000,-1012.44,4.79e-05,2]
[422688528,1779247832000,-2351.0,5.345e-05,2]
[422688530,1779247832000,-1012.44,5.348e-05,2]
[422688524,1779247832000,-1313.33356802,4.859e-05,2]
[422688525,1779247832000,-1012.44,4.976e-05,2]
[422688519,1779247832000,-569.13169042,4.61e-05,2]